Cogmind - Beta 9.6 @@@ ROGUE MODE // 2020.05.16 @ 23:42:14 Player: Pitt Result: Destroyed by D-53 Grenadier with Mini Grenade Launcher Performance ------------- Evolutions (1) 500 Regions Visited (4) 800 Robots Destroyed (9) 45 Value Destroyed (36) 36 Prototype IDs (0) 0 Alien Tech Used (0) 0 Bonus (0) 0 TOTAL SCORE: 1381 Bonus ------- None Cogmind --------- Core Integrity 0/400 Matter 64/300 Energy 99/100 System Corruption 9% Temperature Cool (0) Movement Core (50) Location -9/Mines Parts ------- > --- POWER (1) -------- (None) > --- PROPULSION (2) --- (None) > --- UTILITY (4) ------ Improved Terrain Scanner > --- WEAPON (2) ------- (None) > --- INVENTORY (4) ---- Hover Unit Hover Unit Medium Storage Unit Mining Laser Peak State ------------ > --- POWER ------------ Light Ion Engine > --- PROPULSION ------- Hover Unit Hover Unit > --- UTILITY ---------- Small Storage Unit Improved Terrain Scanner Seismic Analyzer > --- WEAPON ----------- EM Pulse Gun Light Assault Rifle > --- INVENTORY -------- Grenade Launcher Mining Laser [Rating: 9] Favorites ----------- Power Ion Engine Engine Ion Engine Propulsion Hover Unit Leg Aluminum Leg Hover Unit Hover Unit Utility Small Storage Unit Device Improved Terrain Scanner Storage Small Storage Unit Processor Seismic Analyzer Weapon Light Assault Rifle Energy Gun EM Pulse Gun Ballistic Gun Light Assault Rifle Launcher Grenade Launcher Build | -11 -10 -10 -9 -9 ------- Run | Scr Mat Min Mat Min Slots Evolved 2 | . . . 2 . Power . | . . . . . Propulsion . | . . . . . Utility 2 | . . . 2 . Weapon . | . . . . . Parts Attached 15 | 7 . 3 3 2 Power 3 | 1 . 1 1 . Engine 3 | 1 . 1 1 . Core . | . . . . . Reactor . | . . . . . Propulsion 5 | 2 . 2 . 1 Treads . | . . . . . Leg 2 | 2 . . . . Wheel . | . . . . . Hover 3 | . . 2 . 1 Flight . | . . . . . Utility 4 | 2 . . 2 . Device 1 | . . . 1 . Storage 2 | 1 . . 1 . Processor 1 | 1 . . . . Hackware . | . . . . . Protection . | . . . . . Artifact . | . . . . . Weapon 3 | 2 . . . 1 Energy Gun 1 | 1 . . . . Energy Cannon . | . . . . . Ballistic Gun 1 | 1 . . . . Ballistic Cannon . | . . . . . Launcher 1 | . . . . 1 Special Weapon . | . . . . . Impact Weapon . | . . . . . Slashing Weapon . | . . . . . Piercing Weapon . | . . . . . Special Melee Weapon . | . . . . . Unidentified Prototypes . | . . . . . Parts Lost 9 | . . . 3 6 Power 2 | . . . 1 1 Propulsion 3 | . . . . 3 Utility 1 | . . . . 1 Weapon 3 | . . . 2 1 Highest Loss Streak 6 | . . . 3 6 Average Slot Usage (%) 70 | . 100 90 69 44 Engine 10 | . 14 14 10 6 Leg 5 | . 28 4 . . Hover 15 | . . 23 22 11 Device 7 | . . . 11 11 Storage 10 | . 14 4 11 11 Processor 10 | . 14 14 11 4 Energy Gun 5 | . 14 14 2 . Ballistic Gun 5 | . 14 14 2 . Naked Turns . | . . . . . Heaviest Build 15 | 12 12 6 12 15 Greatest Support 20 | 20 20 12 12 12 Greatest Overweight (x) 2 | . . . . 2 Average Overweight (x) . | . . . . . Largest Inventory Capacity 6 | 6 6 6 6 6 Average Capacity 5 | 5 6 4 5 6 Most Carried 6 | 5 6 6 6 6 Average Carried 4 | 1 5 4 5 4 Final Capacity 6 | 6 6 4 6 4 Final Carried 6 | 5 6 4 6 4 Class Distribution -------------------- 52% | Scavenger-Mutant 47% | Mutant Dominant Class ---------------- Mutant | -10/Materials Mutant | -10/Mines Scavenger-Mutant | -9/Materials Mutant | -9/Mines Resources | -11 -10 -10 -9 -9 ----------- Run | Scr Mat Min Mat Min Matter Collected 112 | 112 . . . . Remotely . | . . . . . Salvage Created 154 | 112 27 . . 15 Parts 14 | 8 6 . . . Haulers Intercepted . | . . . . . Recyclers Shooed . | . . . . . Parts Field Recycled . | . . . . . Retrieved Matter . | . . . . . Parts Self-Destructed . | . . . . . Prevented . | . . . . . Kills | -11 -10 -10 -9 -9 ------- Run | Scr Mat Min Mat Min Combat Hostiles Destroyed 5 | . . . . 5 AOE 5 | . . . . 5 Classes Destroyed 4 | 2 1 . . 1 Tunneler 2 | 2 . . . . Recycler 1 | 1 . . . . Watcher 1 | . 1 . . . Assembled 5 | . . . . 5 Best Kill Streak 5 | 3 1 . . 5 Combat Bots Only 5 | . . . . 5 Max Kills in Single Turn 3 | 1 1 . . 3 Gunslinging . | . . . . . Exploded 3 | . . . . 3 Melee . | . . . . . Uniques/NPCs Destroyed . | . . . . . Combat | -11 -10 -10 -9 -9 -------- Run | Scr Mat Min Mat Min Damage Taken 947 | . . . 351 596 Core 406 | . . . 149 257 Absorbed by Shields . | . . . . . Core Remaining (%) 100 | 100 . 100 . . Volleys Fired 15 | 5 4 . 4 2 Largest 2 | 2 2 . 2 1 Hottest 60 | 60 60 . 60 30 Shots Fired 28 | 10 8 . 8 2 Gun 26 | 10 8 . 8 . Cannon . | . . . . . Launcher 2 | . . . . 2 Special . | . . . . . Kinetic 13 | 5 4 . 4 . Thermal . | . . . . . Explosive 2 | . . . . 2 Electromagnetic 13 | 5 4 . 4 . Robot Hit Streak 3 | 3 2 . 2 . Robot Miss Streak 2 | 2 2 . 1 2 Penetration Max . | . . . . . Secondary Targets . | . . . . . Shots Hit Robots 15 | 6 3 . 6 . Core Hits 22 | 5 2 . 1 14 Critical Hits . | . . . . . Critical Kills . | . . . . . Critical Parts Destroyed . | . . . . . Melee Attacks . | . . . . . Impact . | . . . . . Slashing . | . . . . . Piercing . | . . . . . Sneak Attacks . | . . . . . Combat Hostiles . | . . . . . Follow-up Attacks . | . . . . . Damage Inflicted 676 | 80 74 . 60 462 Guns 214 | 80 74 . 60 . Cannons . | . . . . . Explosions 462 | . . . . 462 Melee . | . . . . . Ramming . | . . . . . Kinetic 61 | 29 6 . 26 . Thermal . | . . . . . Explosive 462 | . . . . 462 Electromagnetic 153 | 51 68 . 34 . Impact . | . . . . . Slashing . | . . . . . Piercing . | . . . . . Highest Corruption 9 | . . . . 9 Average Corruption 8 | . . . . 8 Corruption Purged . | . . . . . Effects 2 | . . . . 2 Matter Fused 1 | . . . . 1 Energy Discharges 1 | . . . . 1 Overload Shots . | . . . . . Overflow Damage 12 | . . . . 12 Projectiles . | . . . . . Explosions 12 | . . . . 12 Melee . | . . . . . Knockbacks . | . . . . . Impact . | . . . . . Kinetic . | . . . . . Secondary . | . . . . . Self-Inflicted Damage 62 | . . . . 62 Shots 2 | . . . . 2 Rammed . | . . . . . Targets Rammed . | . . . . . Kicked . | . . . . . Crushed . | . . . . . Highest Temperature 76 | 40 40 . 76 24 Average Temperature 24 | 17 18 . 39 15 Received Heat Transfer 155 | . . . 57 98 Siege Activations . | . . . . . Robots Corrupted . | . . . . . Combat Hostiles . | . . . . . Parts Fried . | . . . . . Impact Corruptions . | . . . . . Robots Melted . | . . . . . Combat Hostiles . | . . . . . Parts Melted . | . . . . . Heat Transferred . | . . . . . Parts Sabotaged . | . . . . . Parts Stolen . | . . . . . Parts Stripped . | . . . . . Power Chain Reactions . | . . . . . Missiles Intercepted . | . . . . . Alert | -11 -10 -10 -9 -9 ------- Run | Scr Mat Min Mat Min Peak Influence 47 | 15 16 6 47 18 Average Influence 9 | 10 12 6 11 3 Maximum Alert Level . | . . . . . Low Security (%) 100 | 100 100 100 100 100 Level 1 . | . . . . . Level 2 . | . . . . . Level 3 . | . . . . . Level 4 . | . . . . . Level 5 . | . . . . . High Security . | . . . . . Max Security . | . . . . . Squads Dispatched 1 | . . . 1 . Investigation . | . . . . . Extermination . | . . . . . Reinforcement 1 | . . . 1 . Assault . | . . . . . Garrison . | . . . . . Intercept . | . . . . . Construction Impeded . | . . . . . Haulers Reinforced . | . . . . . Stealth | -11 -10 -10 -9 -9 --------- Run | Scr Mat Min Mat Min Distress Signals 2 | . . . 2 . Communications Jammed . | . . . . . Distress Signals . | . . . . . Times Spotted 48 | . 4 . 16 28 Peak Tracking Total 23 | . 2 . 15 23 Tactical Retreats 2 | . . . 1 1 Traps | -11 -10 -10 -9 -9 ------- Run | Scr Mat Min Mat Min Traps Triggered . | . . . . . Indirectly . | . . . . . Trap Hack Attempts . | . . . . . Triggered . | . . . . . Disarmed . | . . . . . Reprogrammed . | . . . . . Reused . | . . . . . Traps Extracted . | . . . . . Installed . | . . . . . Triggered . | . . . . . Machines | -11 -10 -10 -9 -9 ---------- Run | Scr Mat Min Mat Min Machines Disabled . | . . . . . Max in Single Turn . | . . . . . Machines Sabotaged . | . . . . . Garrisons Compromised . | . . . . . Overloaded Fab Kills . | . . . . . Fab Network Shutdowns . | . . . . . Hacking | -11 -10 -10 -9 -9 --------- Run | Scr Mat Min Mat Min Machines Accessed 2 | . . . 2 . Terminals 1 | . . . 1 . Fabricators . | . . . . . Repair Stations . | . . . . . Recycling Units . | . . . . . Scanalyzers 1 | . . . 1 . Garrison Access . | . . . . . Total Hacks 5 | . . . 5 . Successful 4 | . . . 4 . Failed 1 | . . . 1 . Catastrophic . | . . . . . Database Lockouts . | . . . . . Manual 2 | . . . 2 . Terminals 2 | . . . 2 . Fabricators . | . . . . . Repair Stations . | . . . . . Recycling Units . | . . . . . Scanalyzers 3 | . . . 3 . Garrison Access . | . . . . . Terminal Hacks 1 | . . . 1 . Terminal Index 1 | . . . 1 . Fabricator Hacks . | . . . . . Repair Station Hacks . | . . . . . Recycling Unit Hacks . | . . . . . Scanalyzer 2 | . . . 2 . Insert Component 1 | . . . 1 . Analyze 1 | . . . 1 . Garrison Access Hacks . | . . . . . Unauthorized Hacks 1 | . . . 1 . Terminals 1 | . . . 1 . Operators 1 | . . . 1 . Fabricators . | . . . . . Repair Stations . | . . . . . Recycling Units . | . . . . . Scanalyzers . | . . . . . Garrison Access . | . . . . . Data Cores Recovered . | . . . . . Used . | . . . . . Hacking Detections 2 | . . . 2 . Full Trace Events . | . . . . . Feedback Events . | . . . . . Feedback Blocked . | . . . . . Robot Schematics Acquired . | . . . . . Robots Built . | . . . . . Matter . | . . . . . Time . | . . . . . Total Robot Build Rating . | . . . . . Part Schematics Acquired 1 | . . . 1 . Parts Built . | . . . . . Matter . | . . . . . Time . | . . . . . Total Part Build Rating . | . . . . . Parts Repaired . | . . . . . Time . | . . . . . Parts Recycled . | . . . . . Recycled Matter . | . . . . . Retrieved Matter . | . . . . . Retrieved Components . | . . . . . Parts Scanalyzed 1 | . . . 1 . Part Schematics Acquired 1 | . . . 1 . Parts Damaged . | . . . . . Bothacking | -11 -10 -10 -9 -9 ------------ Run | Scr Mat Min Mat Min Used RIF Installer . | . . . . . Robots Hacked . | . . . . . Non-combat . | . . . . . Combat . | . . . . . Robot Hacks Applied . | . . . . . Relay Couplers Released . | . . . . . Robots Rewired . | . . . . . Allies Hacked . | . . . . . Hacks Repelled . | . . . . . Allies | -11 -10 -10 -9 -9 -------- Run | Scr Mat Min Mat Min Total Allies . | . . . . . Largest Group . | . . . . . Highest-Rated Group . | . . . . . Highest-Rated Ally . | . . . . . Total Orders . | . . . . . Ally Attacks . | . . . . . Total Damage . | . . . . . Kills . | . . . . . Allies Corrupted . | . . . . . Allies Melted . | . . . . . Intel | -11 -10 -10 -9 -9 ------- Run | Scr Mat Min Mat Min Robot Analysis Total . | . . . . . Derelict Logs Recovered 2 | . . 1 . 1 Drone Launches . | . . . . . Drone Recoveries . | . . . . . Exploration | -11 -10 -10 -9 -9 ------------- Run | Scr Mat Min Mat Min Turns Passed 404 | 109 59 26 141 69 Spaces Moved 429 | 68 37 35 204 85 Core 31 | 2 . . . 29 Treads . | . . . . . Legs 103 | 66 37 . . . Wheels . | . . . . . Hover 295 | . . 35 204 56 Flight . | . . . . . Fastest Speed 50 | 50 120 56 56 56 Average Speed 74 | 117 120 56 56 73 Slowest Speed 180 | 120 120 56 56 180 Overloaded Moves . | . . . . . Propulsion Burnouts . | . . . . . Robots Hopped . | . . . . . Cave-ins Triggered . | . . . . . Exploration Rate (%) 16 | 3 11 9 27 30 Regions Visited 4 Branch Regions 2 Pre-discovered Areas . | . . . . . Known Exits Taken . | . . . . . Unknown Exits Taken 4 | 1 1 1 1 . Scrap Searched . | . . . . . Spaces Dug . | . . . . . Terrain Destroyed 8 | . . . . 8 Melee . | . . . . . Projectile . | . . . . . AOE 8 | . . . . 8 Actions | -11 -10 -10 -9 -9 --------- Run | Scr Mat Min Mat Min Total 482 | 84 45 41 222 90 Wait 8 | . . . 8 . Move 425 | 67 36 34 203 85 Hop . | . . . . . Pick Up 12 | 5 3 . 4 . Fast Attach 8 | 7 . . 1 . Attach 4 | . . . 2 2 Detach 1 | . . 1 . . Swap 3 | . . 3 . . Drop 6 | . 2 3 . 1 Fire 15 | 5 4 . 4 2 Melee . | . . . . . Ram . | . . . . . Kick . | . . . . . Crush . | . . . . . Escape Stasis . | . . . . . Rewire . | . . . . . Trap . | . . . . . Miscellaneous . | . . . . . Route ------- -11/Scrapyard -10/Materials -10/Mines -9/Materials (discovered 2 exits: [*Min] / Sto) -9/Mines History --------- Turn | Location | Event 5 | -11/Scrapyard | Discovered new exit (range 16) 110 | -11/Scrapyard | Entered Materials 132 | -10/Materials | Discovered new exit (range 16) 169 | -10/Materials | Entered Mines 187 | -10/Mines | Discovered new exit (range 14) 188 | -10/Mines | Learned 2 Materials zone layouts 195 | -10/Mines | Entered Materials 195 | -9/Materials | Evolved 2 slots: Utility x2 196 | -9/Materials | Identified exit to Storage 257 | -9/Materials | Lost 3 parts (1p2w) 330 | -9/Materials | Discovered new exit (range 12) 336 | -9/Materials | Entered Mines 349 | -9/Mines | Assembled infested the area 354 | -9/Mines | Learned Materials garrison access intel 365 | -9/Mines | Core integrity fell below 50% 400 | -9/Mines | Core integrity fell below 20% 405 | -9/Mines | Destroyed by D-53 Grenadier with Mini Grenade Launcher Last Messages --------------- 00366_ as-74119 destroyed. 00368_ Grenade Launcher destroyed. 00370_ Imp. Ion Engine destroyed. 00372_ System corrupted: Matter fused (-10). 00376_ L-31 Rogue system corrupted by crushing effect. 00376_ as-92863 destroyed. 00376_ Hover Unit destroyed. 00376_ as-11963 destroyed. 00376_ as-07206 destroyed. 00376_ as-64622 destroyed. 00376_ L-31 Rogue knocked back. 00377_ L-31 Rogue system terminally corrupted. 00378_ G-34 Mercenary destroyed. 00383_ as-87545 destroyed. 00383_ as-77946 destroyed. 00383_ as-83958 destroyed. 00384_ as-45991 destroyed. 00386_ D-53 Grenadier destroyed. 00391_ System corrupted: Energy discharge (-29). 00405_ Dropped Sml. Storage Unit. Map ----- +----------------------------------------------------+ | ?????????????????????????????????????????????????? | | ?????????????????????????????????????????????????? | | ?????????????????????????????????????????????????? | | ?????????????????????????????????????????????????? | | ?????????????????????????????????????????????????? | | ?????????????????????????????????????????????????? | | ?????????????????????????????????????????????????? | | ?????????????????????????????????????????????????? | | ?????????????????????????????????????????????????? | | ????????????#????????????????????????????????????? | | ?????????????????????????????????????????????????? | | ???????????????????????????????#?????????????????? | | ?????????????????????????????????????????????????? | | ??????????????????#??????????????? ??????????????? | | ??????????????????####???? ?????? #??????????????? | | ?????????#???????## ##??#?????? ##?????????????? | | ?????????????????# #???????? ###???????????? | | ????????????????## #???????? ???????????? | | ???????#???????## ###?????? u ???????????? | | ?????????????### #????? s ????????????? | | ????????????## ##???# s ??????????????? | | ???????????## #?## #???????????????? | | ??????????## ## #???????????????? | | ??????????# ##??????????????? | | ?????###??# ##?????????????? | | #??? ### @ #?????????????? | | ????? ### #?????????? | | ?????? #?### #??????????? | | ?????? #???## d #### ##??????????? | | ?????? #?#??## ## ##?????? #???????????? | | ?????? #?#???## ### ##????????????????????? | | ????#?# #??????## #?## ###????????????????????? | | ?#????# #??????## #??####?#????????????????????? | | ?#???## #??##???# ##???#?#?????????????????????? | | ??????# #??#??### ###?#???????????????????????? | | ####### #??#### ! ##?#???????????????????????? | | # #???#= !% #???#?????????????????????? | | # ##### #####=[ = ##?????? ?????????????????? | | # #???# %%=%%%% #####?????????????????????? | | # #??# #####%% " ???????????????? | | # ##?#####???#= "%" ???????????????? | | # #????????#?### ########## ????????????????? | | # ###????##????# ###???????????????????????????? | | #?????#???## #?######?????? ???????????????? | | #???????#?# #### ##??????????????????????? | | #?#??#????# # ##?????????????????????? | | #?##??#???# ##????????????????????? | | #???#?##### % #???? ????????????????? | | #??????## ##?????????????????????? | | #####????#?# ###?????????????????????? | +----------------------------------------------------+ Best States ------------- Heat Dissipation 28 Energy Generation 12 Energy Capacity 265 Matter Stores 138 Matter Capacity 300 Sight Range 16 Terrain Scan Range 16 Terrain Scan Density 60 Evasion (%) 53 Item Schematics ----------------- Med. Storage Unit | -9/Materials | Scanalyzed Robot Schematics ------------------ None Fabricated ------------ Nothing Alien Tech Used ----------------- None Achievements -------------- None Challenges ------------ None Game ------ Seed CoolantHardcellWand Manual? 0 Play Time 00:11:34 Cumulative 60.7 hours Start 2020.05.16 @ 23:30:11 End 2020.05.16 @ 23:42:14 Sessions 1 Manual Loads 0 Difficulty Rogue Special Mode None Game No. 106 Rogue 106 Adventurer 0 Explorer 0 Win Type - Total 0 Types 0/0/0/0/0/0/0 Lore% 40 Gallery% 48 Achievement% 31 Wizard Run 0 Options --------- ASCII 0 Keyboard 0 Movement Mouse Keybinds 0 Fullscreen 1 Font 12/Smallcaps Map View 83x54 Tactical HUD 1 Map Filters NONE Filters NONE Steam 1 RUN: d9579bfd-8a4c-4176-957c-9cf149caf4b2